[Event "Titled Tuesday Blitz June 8 2021"]
[White "Tang, Andrew"]
[Black "Papasimakopoulos, Alexandros"]
[WhiteFideId "2059630"]
[BlackFideId "4244125"]
[WhiteElo "2584"]
[BlackElo "2352"]
[Result "0-1"]
[Round "05"]
[TimeControl "180+1"]
[Date "2021.06.08"]
[WhiteClock "0:00:02"]
[BlackClock "0:00:09"]

1. d4 {[%clk 0:03:00]}  e6 {[%clk 0:02:52]} 2. Bf4 {[%clk 0:02:58]}  Nf6 {[%clk 0:02:49]} 3. e3 {[%clk 0:02:57]}  c5 {[%clk 0:02:49]} 4. Nf3 {[%clk 0:02:57]}  Qb6 {[%clk 0:02:50]} 5. Na3 {[%clk 0:02:53]}  d5 {[%clk 0:02:44]} 6. Nb5 {[%clk 0:02:52]}  Na6 {[%clk 0:02:44]} 7. c3 {[%clk 0:02:49]}  Bd7 {[%clk 0:02:41]} 8. a4 {[%clk 0:02:49]}  c4 {[%clk 0:02:39]} 9. b3 {[%clk 0:02:49]}  cxb3 {[%clk 0:02:37]} 10. Qxb3 {[%clk 0:02:48]}  Be7 {[%clk 0:02:38]} 11. a5 {[%clk 0:02:48]}  Qd8 {[%clk 0:02:36]} 12. Nd6+ {[%clk 0:02:48]}  Bxd6 {[%clk 0:02:36]} 13. Bxd6 {[%clk 0:02:49]}  Bc6 {[%clk 0:02:34]} 14. Ba3 {[%clk 0:02:49]}  Nc7 {[%clk 0:02:26]} 15. Ne5 {[%clk 0:02:48]}  a6 {[%clk 0:02:23]} 16. Qb6 {[%clk 0:02:39]}  Nb5 {[%clk 0:02:18]} 17. Nxc6 {[%clk 0:01:50]}  Qxb6 {[%clk 0:02:15]} 18. axb6 {[%clk 0:01:50]}  bxc6 {[%clk 0:02:15]} 19. Bxb5 {[%clk 0:01:05]}  cxb5 {[%clk 0:02:12]} 20. b7 {[%clk 0:01:05]}  Rb8 {[%clk 0:02:12]} 21. Bb4 {[%clk 0:00:54]}  Rxb7 {[%clk 0:02:12]} 22. Rxa6 {[%clk 0:00:54]}  Kd7 {[%clk 0:02:10]} 23. Ke2 {[%clk 0:00:53]}  Rc8 {[%clk 0:02:04]} 24. f3 {[%clk 0:00:47]}  Rc6 {[%clk 0:01:57]} 25. Ra8 {[%clk 0:00:43]}  Rc8 {[%clk 0:01:57]} 26. Rha1 {[%clk 0:00:43]}  Rxa8 {[%clk 0:01:46]} 27. Rxa8 {[%clk 0:00:44]}  Ne8 {[%clk 0:01:46]} 28. Kd3 {[%clk 0:00:42]}  f6 {[%clk 0:01:39]} 29. e4 {[%clk 0:00:41]}  h5 {[%clk 0:01:34]} 30. Ba5 {[%clk 0:00:33]}  Ke7 {[%clk 0:01:31]} 31. Ra6 {[%clk 0:00:19]}  Kd7 {[%clk 0:01:23]} 32. h3 {[%clk 0:00:19]}  Nd6 {[%clk 0:01:19]} 33. Bb4 {[%clk 0:00:17]}  Nc8 {[%clk 0:01:16]} 34. g4 {[%clk 0:00:17]}  hxg4 {[%clk 0:01:14]} 35. hxg4 {[%clk 0:00:17]}  Ra7 {[%clk 0:01:13]} 36. Rxa7+ {[%clk 0:00:13]}  Nxa7 {[%clk 0:01:14]} 37. Bf8 {[%clk 0:00:12]}  g6 {[%clk 0:01:15]} 38. Ke3 {[%clk 0:00:10]}  Nc6 {[%clk 0:01:13]} 39. Kf4 {[%clk 0:00:09]}  Ke8 {[%clk 0:01:12]} 40. Bc5 {[%clk 0:00:08]}  Kf7 {[%clk 0:01:12]} 41. Bd6 {[%clk 0:00:07]}  g5+ {[%clk 0:01:04]} 42. Ke3 {[%clk 0:00:07]}  Kg6 {[%clk 0:01:04]} 43. Kd3 {[%clk 0:00:07]}  Na5 {[%clk 0:00:58]} 44. Kc2 {[%clk 0:00:05]}  Nc4 {[%clk 0:00:57]} 45. Bc7 {[%clk 0:00:04]}  dxe4 {[%clk 0:00:56]} 46. fxe4 {[%clk 0:00:04]}  Ne3+ {[%clk 0:00:56]} 47. Kb3 {[%clk 0:00:04]}  Nxg4 {[%clk 0:00:57]} 48. Kb4 {[%clk 0:00:04]}  Nf2 {[%clk 0:00:58]} 49. d5 {[%clk 0:00:03]}  Kf7 {[%clk 0:00:43]} 50. Kxb5 {[%clk 0:00:02]}  Nxe4 {[%clk 0:00:31]} 51. d6 {[%clk 0:00:02]}  Nxd6+ {[%clk 0:00:17]} 52. Bxd6 {[%clk 0:00:03]}  e5 {[%clk 0:00:16]} 53. c4 {[%clk 0:00:03]}  Ke6 {[%clk 0:00:16]} 54. Kc6 {[%clk 0:00:04]}  g4 {[%clk 0:00:15]} 55. Bc5 {[%clk 0:00:03]}  f5 {[%clk 0:00:14]} 56. Bg1 {[%clk 0:00:03]}  f4 {[%clk 0:00:15]} 57. c5 {[%clk 0:00:04]}  g3 {[%clk 0:00:16]} 58. Kb7 {[%clk 0:00:04]}  f3 {[%clk 0:00:16]} 59. c6 {[%clk 0:00:04]}  f2 {[%clk 0:00:17]} 60. Bxf2 {[%clk 0:00:05]}  gxf2 {[%clk 0:00:17]} 61. c7 {[%clk 0:00:06]}  f1=Q {[%clk 0:00:18]} 62. c8=Q+ {[%clk 0:00:07]}  Kd5 {[%clk 0:00:18]} 63. Qd7+ {[%clk 0:00:06]}  Ke4 {[%clk 0:00:17]} 64. Qg4+ {[%clk 0:00:06]}  Qf4 {[%clk 0:00:16]} 65. Qe2+ {[%clk 0:00:07]}  Qe3 {[%clk 0:00:17]} 66. Qg4+ {[%clk 0:00:06]}  Kd3 {[%clk 0:00:18]} 67. Qd1+ {[%clk 0:00:06]}  Kc4 {[%clk 0:00:16]} 68. Qc2+ {[%clk 0:00:05]}  Kb4 {[%clk 0:00:16]} 69. Qb2+ {[%clk 0:00:04]}  Kc4 {[%clk 0:00:11]} 70. Qc2+ {[%clk 0:00:03]}  Qc3 {[%clk 0:00:11]} 71. Qe4+ {[%clk 0:00:03]}  Qd4 {[%clk 0:00:11]} 72. Qc2+ {[%clk 0:00:04]}  Kb4 {[%clk 0:00:11]} 73. Qb1+ {[%clk 0:00:04]}  Ka3 {[%clk 0:00:10]} 74. Qf5 {[%clk 0:00:03]}  e4 {[%clk 0:00:09]} 75. Qa5+ {[%clk 0:00:02]}  Kb3 {[%clk 0:00:09]} 76. Qh5 {[%clk 0:00:02]}  e3 {[%clk 0:00:09]} 0-1


[Site "https://www.chess.com"]

[Event "Titled Tuesday Blitz June 8 2021"]
[White "Tejedor Fuente, Enrique"]
[Black "Kuzubov, Yuriy"]
[WhiteFideId "2299100"]
[BlackFideId "14112906"]
[WhiteElo "2535"]
[BlackElo "2564"]
[Result "1-0"]
[Round "05"]
[TimeControl "180+1"]
[Date "2021.06.08"]
[WhiteClock "0:00:06"]
[BlackClock "0:00:22"]

1. e4 {[%clk 0:03:00]}  c5 {[%clk 0:02:55]} 2. Nc3 {[%clk 0:02:59]}  d6 {[%clk 0:02:55]} 3. g3 {[%clk 0:03:00]}  g6 {[%clk 0:02:55]} 4. Bg2 {[%clk 0:03:00]}  Bg7 {[%clk 0:02:55]} 5. d3 {[%clk 0:03:01]}  Nc6 {[%clk 0:02:55]} 6. Be3 {[%clk 0:03:01]}  Rb8 {[%clk 0:02:55]} 7. Qd2 {[%clk 0:03:01]}  b5 {[%clk 0:02:55]} 8. Nge2 {[%clk 0:03:02]}  b4 {[%clk 0:02:54]} 9. Nd1 {[%clk 0:03:02]}  a5 {[%clk 0:02:50]} 10. O-O {[%clk 0:03:01]}  a4 {[%clk 0:02:50]} 11. a3 {[%clk 0:02:59]}  Bd7 {[%clk 0:02:45]} 12. axb4 {[%clk 0:02:56]}  Nxb4 {[%clk 0:02:43]} 13. Ndc3 {[%clk 0:02:47]}  Nf6 {[%clk 0:02:43]} 14. h3 {[%clk 0:02:30]}  Qa5 {[%clk 0:02:13]} 15. Nxa4 {[%clk 0:02:16]}  Bxa4 {[%clk 0:02:08]} 16. b3 {[%clk 0:02:16]}  Nc6 {[%clk 0:01:52]} 17. Qxa5 {[%clk 0:02:10]}  Nxa5 {[%clk 0:01:53]} 18. e5 {[%clk 0:01:49]}  Bxb3 {[%clk 0:01:37]} 19. cxb3 {[%clk 0:01:18]}  Nxb3 {[%clk 0:01:31]} 20. exf6 {[%clk 0:01:16]}  Bxf6 {[%clk 0:01:30]} 21. Bc6+ {[%clk 0:01:13]}  Kf8 {[%clk 0:01:30]} 22. Rab1 {[%clk 0:01:01]}  Kg7 {[%clk 0:01:30]} 23. Bd5 {[%clk 0:01:01]}  Nd4 {[%clk 0:01:00]} 24. Nxd4 {[%clk 0:00:59]}  cxd4 {[%clk 0:00:59]} 25. Bd2 {[%clk 0:00:57]}  e6 {[%clk 0:00:57]} 26. Bf3 {[%clk 0:00:52]}  Rhc8 {[%clk 0:00:55]} 27. Rxb8 {[%clk 0:00:50]}  Rxb8 {[%clk 0:00:55]} 28. Bf4 {[%clk 0:00:51]}  Rb6 {[%clk 0:00:53]} 29. Rc1 {[%clk 0:00:50]}  g5 {[%clk 0:00:46]} 30. Bd2 {[%clk 0:00:50]}  Rb3 {[%clk 0:00:44]} 31. Be2 {[%clk 0:00:48]}  Rb2 {[%clk 0:00:44]} 32. Rd1 {[%clk 0:00:49]}  Kg6 {[%clk 0:00:43]} 33. Kf1 {[%clk 0:00:48]}  h5 {[%clk 0:00:42]} 34. Bc1 {[%clk 0:00:48]}  Ra2 {[%clk 0:00:41]} 35. Rd2 {[%clk 0:00:47]}  Ra1 {[%clk 0:00:41]} 36. Rc2 {[%clk 0:00:47]}  Bg7 {[%clk 0:00:37]} 37. Kg2 {[%clk 0:00:46]}  d5 {[%clk 0:00:36]} 38. Bb2 {[%clk 0:00:43]}  Ra2 {[%clk 0:00:35]} 39. Bd1 {[%clk 0:00:43]}  f5 {[%clk 0:00:33]} 40. Bc1 {[%clk 0:00:42]}  Ra1 {[%clk 0:00:30]} 41. Rc6 {[%clk 0:00:42]}  Bf6 {[%clk 0:00:26]} 42. g4 {[%clk 0:00:33]}  hxg4 {[%clk 0:00:26]} 43. hxg4 {[%clk 0:00:34]}  f4 {[%clk 0:00:26]} 44. Be2 {[%clk 0:00:30]}  Kf7 {[%clk 0:00:26]} 45. Rc7+ {[%clk 0:00:27]}  Kg6 {[%clk 0:00:24]} 46. Bf3 {[%clk 0:00:28]}  Be5 {[%clk 0:00:24]} 47. Rc6 {[%clk 0:00:28]}  Kf7 {[%clk 0:00:23]} 48. Bb2 {[%clk 0:00:23]}  Rb1 {[%clk 0:00:21]} 49. Rc2 {[%clk 0:00:21]}  Bf6 {[%clk 0:00:19]} 50. Bc1 {[%clk 0:00:19]}  Ke7 {[%clk 0:00:19]} 51. Ba3+ {[%clk 0:00:13]}  Kd7 {[%clk 0:00:19]} 52. Rb2 {[%clk 0:00:13]}  Rxb2 {[%clk 0:00:18]} 53. Bxb2 {[%clk 0:00:14]}  Kc6 {[%clk 0:00:19]} 54. Bd1 {[%clk 0:00:12]}  Kb5 {[%clk 0:00:18]} 55. Ba3 {[%clk 0:00:11]}  Bd8 {[%clk 0:00:17]} 56. Kf3 {[%clk 0:00:10]}  Kc6 {[%clk 0:00:17]} 57. Ke2 {[%clk 0:00:10]}  Kd7 {[%clk 0:00:17]} 58. Ba4+ {[%clk 0:00:10]}  Kc7 {[%clk 0:00:17]} 59. Kd2 {[%clk 0:00:10]}  Bf6 {[%clk 0:00:17]} 60. Bc5 {[%clk 0:00:10]}  Be5 {[%clk 0:00:17]} 61. f3 {[%clk 0:00:10]}  Bf6 {[%clk 0:00:17]} 62. Kc2 {[%clk 0:00:10]}  Kb7 {[%clk 0:00:18]} 63. Kb3 {[%clk 0:00:11]}  Ka6 {[%clk 0:00:18]} 64. Kb4 {[%clk 0:00:11]}  Bd8 {[%clk 0:00:19]} 65. Bb5+ {[%clk 0:00:11]}  Kb7 {[%clk 0:00:19]} 66. Bd7 {[%clk 0:00:11]}  Kc7 {[%clk 0:00:19]} 67. Bxe6 {[%clk 0:00:10]}  Kc6 {[%clk 0:00:20]} 68. Bf8 {[%clk 0:00:06]}  Bc7 {[%clk 0:00:19]} 69. Bf7 {[%clk 0:00:05]}  Bd6+ {[%clk 0:00:19]} 70. Bxd6 {[%clk 0:00:05]}  Kxd6 {[%clk 0:00:20]} 71. Kb5 {[%clk 0:00:05]}  Ke5 {[%clk 0:00:21]} 72. Kc5 {[%clk 0:00:05]}  Kf6 {[%clk 0:00:21]} 73. Bxd5 {[%clk 0:00:05]}  Ke5 {[%clk 0:00:22]} 74. Be4 {[%clk 0:00:06]} 1-0


[Site "https://www.chess.com"]

[Event "Titled Tuesday Blitz June 8 2021"]
[White "Terletsky, Oleg"]
[Black "Tanenbaum, Zachary"]
[WhiteFideId "14116774"]
[BlackFideId "2060850"]
[WhiteElo "2094"]
[BlackElo "2165"]
[Result "1/2-1/2"]
[Round "05"]
[TimeControl "180+1"]
[Date "2021.06.08"]
[WhiteClock "0:02:34"]
[BlackClock "0:01:08"]

1. e4 {[%clk 0:03:00]}  e5 {[%clk 0:02:59]} 2. Nf3 {[%clk 0:03:01]}  Nc6 {[%clk 0:02:59]} 3. Nc3 {[%clk 0:03:01]}  Nf6 {[%clk 0:02:59]} 4. d4 {[%clk 0:03:02]}  exd4 {[%clk 0:02:59]} 5. Nxd4 {[%clk 0:03:03]}  Bb4 {[%clk 0:02:59]} 6. Nxc6 {[%clk 0:03:03]}  bxc6 {[%clk 0:03:00]} 7. Bd3 {[%clk 0:03:03]}  d5 {[%clk 0:03:00]} 8. exd5 {[%clk 0:03:04]}  O-O {[%clk 0:03:00]} 9. O-O {[%clk 0:03:04]}  cxd5 {[%clk 0:03:01]} 10. Bg5 {[%clk 0:03:04]}  c6 {[%clk 0:03:00]} 11. Qf3 {[%clk 0:03:04]}  Be7 {[%clk 0:03:00]} 12. Rae1 {[%clk 0:03:03]}  Be6 {[%clk 0:02:52]} 13. h3 {[%clk 0:02:57]}  Rb8 {[%clk 0:02:49]} 14. Nd1 {[%clk 0:02:57]}  h6 {[%clk 0:02:41]} 15. Bxh6 {[%clk 0:02:45]}  gxh6 {[%clk 0:02:26]} 16. Rxe6 {[%clk 0:02:45]}  fxe6 {[%clk 0:02:14]} 17. Qg3+ {[%clk 0:02:44]}  Kh8 {[%clk 0:02:14]} 18. Qg6 {[%clk 0:02:43]}  Bd6 {[%clk 0:01:08]} 19. Qxh6+ {[%clk 0:02:32]}  Kg8 {[%clk 0:01:07]} 20. Qg6+ {[%clk 0:02:33]}  Kh8 {[%clk 0:01:08]} 21. Qh6+ {[%clk 0:02:33]}  Kg8 {[%clk 0:01:08]} 22. Qg6+ {[%clk 0:02:34]}  Kh8 {[%clk 0:01:08]} 23. Qh6+ {[%clk 0:02:34]} 1/2-1/2


[Site "https://www.chess.com"]

[Event "Titled Tuesday Blitz June 8 2021"]
[White "Trent, Lawrence"]
[Black "Khusnutdinov, Rustam"]
[WhiteFideId "408638"]
[BlackFideId "13701703"]
[WhiteElo "2474"]
[BlackElo "2571"]
[Result "0-1"]
[Round "05"]
[TimeControl "180+1"]
[Date "2021.06.08"]
[WhiteClock "0:00:04"]
[BlackClock "0:00:21"]

1. d4 {[%clk 0:03:00]}  Nf6 {[%clk 0:02:59]} 2. Bg5 {[%clk 0:02:51]}  Ne4 {[%clk 0:02:56]} 3. h4 {[%clk 0:02:48]}  c5 {[%clk 0:02:54]} 4. d5 {[%clk 0:02:42]}  Qb6 {[%clk 0:02:48]} 5. Bc1 {[%clk 0:02:40]}  e6 {[%clk 0:02:31]} 6. f3 {[%clk 0:02:37]}  Nf6 {[%clk 0:02:31]} 7. c4 {[%clk 0:02:33]}  exd5 {[%clk 0:02:08]} 8. cxd5 {[%clk 0:02:33]}  Nh5 {[%clk 0:02:00]} 9. e4 {[%clk 0:02:26]}  Ng3 {[%clk 0:01:59]} 10. Rh3 {[%clk 0:02:26]}  Nxf1 {[%clk 0:01:49]} 11. Kxf1 {[%clk 0:02:27]}  d6 {[%clk 0:01:48]} 12. Rh2 {[%clk 0:02:22]}  h5 {[%clk 0:01:42]} 13. Ne2 {[%clk 0:02:21]}  g6 {[%clk 0:01:41]} 14. Nbc3 {[%clk 0:02:20]}  Bg7 {[%clk 0:01:42]} 15. Bf4 {[%clk 0:02:19]}  O-O {[%clk 0:01:37]} 16. Qd2 {[%clk 0:02:19]}  Nd7 {[%clk 0:01:34]} 17. Bh6 {[%clk 0:02:12]}  Ne5 {[%clk 0:01:31]} 18. b3 {[%clk 0:02:10]}  Qa6 {[%clk 0:01:28]} 19. Bxg7 {[%clk 0:02:08]}  Kxg7 {[%clk 0:01:29]} 20. Kg1 {[%clk 0:02:06]}  Bd7 {[%clk 0:01:28]} 21. Qg5 {[%clk 0:01:49]}  f6 {[%clk 0:01:20]} 22. Qg3 {[%clk 0:01:47]}  Qd3 {[%clk 0:01:17]} 23. Rd1 {[%clk 0:01:38]}  Qe3+ {[%clk 0:01:17]} 24. Qf2 {[%clk 0:01:39]}  Qxf2+ {[%clk 0:01:17]} 25. Kxf2 {[%clk 0:01:39]}  b5 {[%clk 0:01:17]} 26. Nf4 {[%clk 0:01:31]}  Kf7 {[%clk 0:01:17]} 27. Nce2 {[%clk 0:01:20]}  a5 {[%clk 0:01:13]} 28. Rb1 {[%clk 0:00:58]}  b4 {[%clk 0:01:11]} 29. Rhh1 {[%clk 0:00:42]}  a4 {[%clk 0:01:11]} 30. Rhd1 {[%clk 0:00:31]}  axb3 {[%clk 0:01:10]} 31. axb3 {[%clk 0:00:32]}  Ra2 {[%clk 0:01:10]} 32. Kg3 {[%clk 0:00:24]}  g5 {[%clk 0:00:58]} 33. hxg5 {[%clk 0:00:14]}  fxg5 {[%clk 0:00:59]} 34. Ne6 {[%clk 0:00:14]}  Rxe2 {[%clk 0:00:23]} 35. Nxf8 {[%clk 0:00:14]}  Kxf8 {[%clk 0:00:23]} 36. Rf1 {[%clk 0:00:07]}  Nd3 {[%clk 0:00:21]} 37. Ra1 {[%clk 0:00:05]}  Nf4 {[%clk 0:00:21]} 38. Kh2 {[%clk 0:00:04]}  Rxg2+ {[%clk 0:00:21]} 39. Kh1 {[%clk 0:00:05]}  Rb2 {[%clk 0:00:22]} 40. Ra7 {[%clk 0:00:04]}  Bh3 {[%clk 0:00:21]} 41. Rg1 {[%clk 0:00:05]}  Bg2+ {[%clk 0:00:20]} 42. Kh2 {[%clk 0:00:05]}  h4 {[%clk 0:00:21]} 43. Ra8+ {[%clk 0:00:03]}  Kf7 {[%clk 0:00:21]} 44. Ra7+ {[%clk 0:00:04]}  Kf6 {[%clk 0:00:21]} 0-1


[Site "https://www.chess.com"]

[Event "Titled Tuesday Blitz June 8 2021"]
[White "Tristan, Leonardo"]
[Black "Ambartsumova, Karina"]
[WhiteFideId "113816"]
[BlackFideId "4166299"]
[WhiteElo "2404"]
[BlackElo "2262"]
[Result "1-0"]
[Round "05"]
[TimeControl "180+1"]
[Date "2021.06.08"]
[WhiteClock "0:00:34"]
[BlackClock "0:00:05"]

1. d4 {[%clk 0:03:00]}  Nf6 {[%clk 0:02:59]} 2. Bf4 {[%clk 0:03:01]}  d5 {[%clk 0:02:58]} 3. e3 {[%clk 0:03:01]}  e6 {[%clk 0:02:58]} 4. Nf3 {[%clk 0:03:01]}  Bd6 {[%clk 0:02:58]} 5. Bg3 {[%clk 0:03:02]}  O-O {[%clk 0:02:58]} 6. c4 {[%clk 0:03:02]}  b6 {[%clk 0:02:48]} 7. cxd5 {[%clk 0:03:02]}  exd5 {[%clk 0:02:47]} 8. Nc3 {[%clk 0:03:03]}  Be6 {[%clk 0:02:15]} 9. Qc2 {[%clk 0:03:01]}  c5 {[%clk 0:02:13]} 10. Rd1 {[%clk 0:02:43]}  c4 {[%clk 0:02:08]} 11. Be2 {[%clk 0:02:40]}  Nc6 {[%clk 0:02:04]} 12. O-O {[%clk 0:02:33]}  Bxg3 {[%clk 0:02:03]} 13. hxg3 {[%clk 0:02:32]}  h6 {[%clk 0:01:53]} 14. Ne5 {[%clk 0:02:32]}  Qd6 {[%clk 0:01:45]} 15. Nb5 {[%clk 0:01:56]}  Nb4 {[%clk 0:01:33]} 16. Nxd6 {[%clk 0:01:53]}  Nxc2 {[%clk 0:01:32]} 17. a3 {[%clk 0:01:54]}  Rad8 {[%clk 0:01:03]} 18. Nb5 {[%clk 0:01:43]}  a6 {[%clk 0:01:03]} 19. Nc7 {[%clk 0:01:35]}  Bf5 {[%clk 0:00:53]} 20. g4 {[%clk 0:01:33]}  Bh7 {[%clk 0:00:48]} 21. Nxa6 {[%clk 0:01:26]}  b5 {[%clk 0:00:40]} 22. Rc1 {[%clk 0:01:18]}  Ra8 {[%clk 0:00:31]} 23. Nc7 {[%clk 0:01:17]}  Rac8 {[%clk 0:00:18]} 24. Nxb5 {[%clk 0:01:15]}  Rb8 {[%clk 0:00:19]} 25. a4 {[%clk 0:01:16]}  Nb4 {[%clk 0:00:17]} 26. f3 {[%clk 0:01:15]}  Ra8 {[%clk 0:00:16]} 27. Nc3 {[%clk 0:01:13]}  Rfb8 {[%clk 0:00:15]} 28. e4 {[%clk 0:01:05]}  dxe4 {[%clk 0:00:14]} 29. Bxc4 {[%clk 0:01:05]}  Nd3 {[%clk 0:00:13]} 30. Rb1 {[%clk 0:00:35]}  Nxb2 {[%clk 0:00:12]} 31. Bxf7+ {[%clk 0:00:35]}  Kf8 {[%clk 0:00:10]} 32. fxe4 {[%clk 0:00:36]}  Rb3 {[%clk 0:00:05]} 33. Bxb3 {[%clk 0:00:34]} 1-0


[Site "https://www.chess.com"]

[Event "Titled Tuesday Blitz June 8 2021"]
[White "Vignesh, N R"]
[Black "Vakhlamov, Igor L."]
[WhiteFideId "25012215"]
[BlackFideId "24126748"]
[WhiteElo "2401"]
[BlackElo "2405"]
[Result "1-0"]
[Round "05"]
[TimeControl "180+1"]
[Date "2021.06.08"]
[WhiteClock "0:02:28"]
[BlackClock "0:01:05"]

1. e4 {[%clk 0:03:00]}  c5 {[%clk 0:02:59]} 2. Nf3 {[%clk 0:03:00]}  Nc6 {[%clk 0:02:56]} 3. Nc3 {[%clk 0:03:00]}  g6 {[%clk 0:02:55]} 4. Bb5 {[%clk 0:02:58]}  Bg7 {[%clk 0:02:55]} 5. O-O {[%clk 0:02:57]}  e5 {[%clk 0:02:51]} 6. d3 {[%clk 0:02:57]}  Nge7 {[%clk 0:02:51]} 7. a4 {[%clk 0:02:55]}  O-O {[%clk 0:02:51]} 8. Bc4 {[%clk 0:02:53]}  d6 {[%clk 0:02:49]} 9. Re1 {[%clk 0:02:50]}  Kh8 {[%clk 0:02:47]} 10. Ng5 {[%clk 0:02:47]}  Qe8 {[%clk 0:02:34]} 11. Nb5 {[%clk 0:02:47]}  Qd8 {[%clk 0:01:15]} 12. Nxf7+ {[%clk 0:02:42]}  Rxf7 {[%clk 0:01:15]} 13. Bxf7 {[%clk 0:02:43]}  d5 {[%clk 0:01:08]} 14. Bxd5 {[%clk 0:02:38]}  Nxd5 {[%clk 0:01:09]} 15. exd5 {[%clk 0:02:39]}  Qxd5 {[%clk 0:01:09]} 16. Nc7 {[%clk 0:02:39]}  Qd4 {[%clk 0:01:08]} 17. Nxa8 {[%clk 0:02:37]}  Bg4 {[%clk 0:01:08]} 18. Qd2 {[%clk 0:02:34]}  Bf3 {[%clk 0:01:06]} 19. Qe3 {[%clk 0:02:28]}  Qg4 {[%clk 0:01:05]} 20. Qxf3 {[%clk 0:02:28]} 1-0


[Site "https://www.chess.com"]

[Event "Titled Tuesday Blitz June 8 2021"]
[White "Vyatkin, Dmitry"]
[Black "Costachi, Mihnea"]
[WhiteFideId "4171900"]
[BlackFideId "1217518"]
[WhiteElo "2279"]
[BlackElo "2479"]
[Result "0-1"]
[Round "05"]
[TimeControl "180+1"]
[Date "2021.06.08"]
[WhiteClock "0:00:03"]
[BlackClock "0:00:23"]

1. d4 {[%clk 0:03:00]}  Nf6 {[%clk 0:02:57]} 2. c4 {[%clk 0:02:57]}  g6 {[%clk 0:02:58]} 3. g3 {[%clk 0:02:57]}  Bg7 {[%clk 0:02:58]} 4. Bg2 {[%clk 0:02:57]}  O-O {[%clk 0:02:59]} 5. Nc3 {[%clk 0:02:57]}  c5 {[%clk 0:02:58]} 6. d5 {[%clk 0:02:57]}  a6 {[%clk 0:02:57]} 7. Nf3 {[%clk 0:02:50]}  b5 {[%clk 0:02:48]} 8. O-O {[%clk 0:02:39]}  b4 {[%clk 0:02:38]} 9. Nb1 {[%clk 0:02:38]}  d6 {[%clk 0:02:38]} 10. Nbd2 {[%clk 0:02:33]}  a5 {[%clk 0:02:37]} 11. e4 {[%clk 0:02:31]}  e5 {[%clk 0:02:36]} 12. Ne1 {[%clk 0:01:59]}  Ne8 {[%clk 0:02:32]} 13. Nd3 {[%clk 0:01:58]}  f5 {[%clk 0:02:32]} 14. f4 {[%clk 0:01:57]}  Nd7 {[%clk 0:02:29]} 15. a4 {[%clk 0:01:53]}  Ra7 {[%clk 0:02:23]} 16. Kh1 {[%clk 0:01:44]}  Qe7 {[%clk 0:02:18]} 17. Re1 {[%clk 0:01:24]}  fxe4 {[%clk 0:02:13]} 18. Nxe4 {[%clk 0:01:23]}  h6 {[%clk 0:02:05]} 19. Bd2 {[%clk 0:01:22]}  Nef6 {[%clk 0:01:57]} 20. Nxd6 {[%clk 0:01:18]}  Qxd6 {[%clk 0:01:53]} 21. fxe5 {[%clk 0:01:18]}  Nxe5 {[%clk 0:01:54]} 22. Nxe5 {[%clk 0:01:18]}  Bf5 {[%clk 0:01:53]} 23. g4 {[%clk 0:01:14]}  Re7 {[%clk 0:01:40]} 24. gxf5 {[%clk 0:01:04]}  Rxe5 {[%clk 0:01:40]} 25. fxg6 {[%clk 0:01:01]}  h5 {[%clk 0:01:39]} 26. h3 {[%clk 0:01:00]}  Nd7 {[%clk 0:01:34]} 27. Rf1 {[%clk 0:00:52]}  Rxf1+ {[%clk 0:01:26]} 28. Qxf1 {[%clk 0:00:52]}  Qxg6 {[%clk 0:01:27]} 29. d6 {[%clk 0:00:30]}  Kh8 {[%clk 0:01:05]} 30. Qf3 {[%clk 0:00:17]}  Rf5 {[%clk 0:00:59]} 31. Qa8+ {[%clk 0:00:17]}  Rf8 {[%clk 0:00:56]} 32. Qe4 {[%clk 0:00:16]}  Qxd6 {[%clk 0:00:55]} 33. Qe2 {[%clk 0:00:11]}  Qe5 {[%clk 0:00:54]} 34. Re1 {[%clk 0:00:09]}  Qxe2 {[%clk 0:00:50]} 35. Rxe2 {[%clk 0:00:10]}  Ne5 {[%clk 0:00:51]} 36. b3 {[%clk 0:00:09]}  Nd3 {[%clk 0:00:49]} 37. Kh2 {[%clk 0:00:05]}  Be5+ {[%clk 0:00:49]} 38. Kg1 {[%clk 0:00:05]}  Bd4+ {[%clk 0:00:49]} 39. Kh2 {[%clk 0:00:05]}  Rf7 {[%clk 0:00:44]} 40. Be1 {[%clk 0:00:03]}  Be5+ {[%clk 0:00:42]} 41. Kg1 {[%clk 0:00:03]}  Kg7 {[%clk 0:00:38]} 42. Bh4 {[%clk 0:00:03]}  Rf4 {[%clk 0:00:34]} 43. Bg3 {[%clk 0:00:02]}  Bd4+ {[%clk 0:00:33]} 44. Kh2 {[%clk 0:00:03]}  Rf7 {[%clk 0:00:34]} 45. Bd5 {[%clk 0:00:03]}  Rf1 {[%clk 0:00:32]} 46. Re7+ {[%clk 0:00:03]}  Kf8 {[%clk 0:00:26]} 47. Bd6 {[%clk 0:00:02]}  Rf2+ {[%clk 0:00:26]} 48. Kg3 {[%clk 0:00:02]}  h4+ {[%clk 0:00:25]} 49. Kxh4 {[%clk 0:00:03]}  Bf6+ {[%clk 0:00:25]} 50. Kg3 {[%clk 0:00:03]}  Bxe7 {[%clk 0:00:25]} 51. Bxe7+ {[%clk 0:00:03]}  Kxe7 {[%clk 0:00:26]} 52. Be4 {[%clk 0:00:03]}  Rb2 {[%clk 0:00:23]} 0-1


[Site "https://www.chess.com"]

[Event "Titled Tuesday Blitz June 8 2021"]
[White "Woodward, Andy"]
[Black "Eynullayev, Atilla"]
[WhiteFideId "30953499"]
[BlackFideId "13413570"]
[WhiteElo "2719"]
[BlackElo "1997"]
[Result "1-0"]
[Round "05"]
[TimeControl "180+1"]
[Date "2021.06.08"]
[WhiteClock "0:00:28"]
[BlackClock "0:00:02"]

1. d4 {[%clk 0:03:00]}  Nf6 {[%clk 0:02:59]} 2. c4 {[%clk 0:02:59]}  e6 {[%clk 0:02:58]} 3. Nc3 {[%clk 0:02:59]}  Bb4 {[%clk 0:02:58]} 4. Qc2 {[%clk 0:02:57]}  O-O {[%clk 0:02:54]} 5. a3 {[%clk 0:02:56]}  Bxc3+ {[%clk 0:02:54]} 6. Qxc3 {[%clk 0:02:57]}  b6 {[%clk 0:02:55]} 7. Bg5 {[%clk 0:02:57]}  c5 {[%clk 0:02:55]} 8. dxc5 {[%clk 0:02:46]}  bxc5 {[%clk 0:02:56]} 9. Nf3 {[%clk 0:02:41]}  Bb7 {[%clk 0:02:55]} 10. e3 {[%clk 0:02:34]}  Nc6 {[%clk 0:02:22]} 11. Bd3 {[%clk 0:02:07]}  Qe7 {[%clk 0:01:57]} 12. O-O {[%clk 0:01:58]}  h6 {[%clk 0:01:49]} 13. Bh4 {[%clk 0:01:47]}  e5 {[%clk 0:01:45]} 14. Bc2 {[%clk 0:01:33]}  a5 {[%clk 0:01:38]} 15. Rad1 {[%clk 0:01:32]}  d6 {[%clk 0:01:37]} 16. Bxf6 {[%clk 0:01:17]}  Qxf6 {[%clk 0:01:33]} 17. Qd3 {[%clk 0:01:18]}  Rfd8 {[%clk 0:01:14]} 18. Qh7+ {[%clk 0:01:02]}  Kf8 {[%clk 0:01:14]} 19. Nd2 {[%clk 0:01:02]}  Ne7 {[%clk 0:00:25]} 20. Be4 {[%clk 0:00:53]}  Bxe4 {[%clk 0:00:24]} 21. Nxe4 {[%clk 0:00:53]}  Qe6 {[%clk 0:00:17]} 22. Rd2 {[%clk 0:00:31]}  Qxc4 {[%clk 0:00:04]} 23. Nxd6 {[%clk 0:00:30]}  Qe6 {[%clk 0:00:04]} 24. Rfd1 {[%clk 0:00:30]}  Ra6 {[%clk 0:00:04]} 25. Nf5 {[%clk 0:00:27]}  Rxd2 {[%clk 0:00:02]} 26. Qh8+ {[%clk 0:00:26]}  Ng8 {[%clk 0:00:02]} 27. Qxg7+ {[%clk 0:00:27]}  Ke8 {[%clk 0:00:02]} 28. Qxg8+ {[%clk 0:00:27]}  Kd7 {[%clk 0:00:02]} 29. Rxd2+ {[%clk 0:00:28]} 1-0


[Site "https://www.chess.com"]